[Event "*** SCC Grand Prix: Titled Tuesday Blitz"]
[Site "Chess.com"]
[Date "2020.08.11"]
[Round "9"]
[White "Susal_De_Silva"]
[Black "aNaartjieZA"]
[Result "0-1"]
[WhiteElo "2343"]
[BlackElo "2513"]
[TimeControl "180+1"]
[EndTime "11:47:15 PDT"]
[Termination "aNaartjieZA won on time"]

1. e4 {[%clk 0:03:00.9]} 1... e6 {[%clk 0:02:59.9]} 2. d4 {[%clk 0:02:59.8]}
2... d5 {[%clk 0:03:00.4]} 3. Nc3 {[%clk 0:03:00.7]} 3... Bb4 {[%clk 0:02:59.9]}
4. e5 {[%clk 0:03:01.4]} 4... c5 {[%clk 0:03:00.1]} 5. a3 {[%clk 0:03:01.3]}
5... Bxc3+ {[%clk 0:03:00.7]} 6. bxc3 {[%clk 0:03:02.2]} 6... Ne7 {[%clk
0:03:01.2]} 7. Qg4 {[%clk 0:03:02.4]} 7... Qc7 {[%clk 0:03:01.4]} 8. Qxg7 {[%clk
0:03:02.5]} 8... Rg8 {[%clk 0:03:01.8]} 9. Qxh7 {[%clk 0:03:02.9]} 9... cxd4
{[%clk 0:03:02.2]} 10. Qd3 {[%clk 0:03:02.9]} 10... Qxe5+ {[%clk 0:02:57]} 11.
Ne2 {[%clk 0:03:01.6]} 11... dxc3 {[%clk 0:02:57.3]} 12. Bf4 {[%clk 0:02:59.6]}
12... Qf6 {[%clk 0:02:52.6]} 13. Qxc3 {[%clk 0:02:53.8]} 13... Qxc3+ {[%clk
0:02:52.2]} 14. Nxc3 {[%clk 0:02:54.7]} 14... f6 {[%clk 0:02:51.5]} 15. Nb5
{[%clk 0:02:47.2]} 15... Na6 {[%clk 0:02:51.5]} 16. Nd6+ {[%clk 0:02:33.5]}
16... Kd7 {[%clk 0:02:51.1]} 17. Bb5+ {[%clk 0:02:33.4]} 17... Kc7 {[%clk
0:02:49]} 18. Ne8+ {[%clk 0:02:16.3]} 18... Kb6 {[%clk 0:02:48.6]} 19. Rb1
{[%clk 0:02:15.4]} 19... e5 {[%clk 0:02:36.3]} 20. Bd7+ {[%clk 0:02:09.3]} 20...
Kc5 {[%clk 0:02:31.8]} 21. Rb5+ {[%clk 0:02:04]} 21... Kc4 {[%clk 0:02:31.6]}
22. Nd6+ {[%clk 0:01:52.7]} 22... Kc3 {[%clk 0:02:28.7]} 23. Bd2+ {[%clk
0:01:23.6]} 23... Kd4 {[%clk 0:02:28.2]} 24. Ke2 {[%clk 0:01:07.7]} 24... e4
{[%clk 0:02:24.8]} 25. Bxc8 {[%clk 0:00:54.3]} 25... Nxc8 {[%clk 0:02:22.4]} 26.
Nf5+ {[%clk 0:00:46.8]} 26... Ke5 {[%clk 0:02:21.5]} 27. Ne3 {[%clk 0:00:45.6]}
27... Nc7 {[%clk 0:02:21.3]} 28. Bc3+ {[%clk 0:00:45.1]} 28... Ke6 {[%clk
0:02:15.7]} 29. Rc5 {[%clk 0:00:44.5]} 29... Kd6 {[%clk 0:02:13.8]} 30. Bb4
{[%clk 0:00:42.1]} 30... b6 {[%clk 0:01:57.1]} 31. Rxd5+ {[%clk 0:00:38.6]}
31... Kc6 {[%clk 0:01:57.4]} 32. Rd4 {[%clk 0:00:38]} 32... a5 {[%clk
0:01:50.3]} 33. Bd2 {[%clk 0:00:38.2]} 33... Re8 {[%clk 0:01:48.6]} 34. h4
{[%clk 0:00:35.1]} 34... Nd6 {[%clk 0:01:48]} 35. c4 {[%clk 0:00:28.9]} 35... f5
{[%clk 0:01:47]} 36. Rd1 {[%clk 0:00:21.8]} 36... Ne6 {[%clk 0:01:46.2]} 37.
Rxd6+ {[%clk 0:00:21.9]} 37... Kxd6 {[%clk 0:01:45.9]} 38. Bxa5+ {[%clk
0:00:22.2]} 38... Kc6 {[%clk 0:01:46.2]} 39. Bb4 {[%clk 0:00:23.1]} 39... Nf4+
{[%clk 0:01:44.5]} 40. Kf1 {[%clk 0:00:22.6]} 40... Nd3 {[%clk 0:01:44.6]} 41.
Nxf5 {[%clk 0:00:21.9]} 41... Ra7 {[%clk 0:01:28.3]} 42. g4 {[%clk 0:00:21.4]}
42... Rg8 {[%clk 0:01:26.7]} 43. g5 {[%clk 0:00:20.2]} 43... Rh8 {[%clk
0:01:24.1]} 44. Nh6 {[%clk 0:00:18.9]} 44... b5 {[%clk 0:01:13]} 45. cxb5+
{[%clk 0:00:18.7]} 45... Kxb5 {[%clk 0:01:13.2]} 46. Bc3 {[%clk 0:00:19.1]}
46... Rf8 {[%clk 0:01:09]} 47. Bd4 {[%clk 0:00:19.4]} 47... Rxa3 {[%clk
0:01:07.7]} 48. Be3 {[%clk 0:00:18.7]} 48... Ra6 {[%clk 0:01:02.8]} 49. h5
{[%clk 0:00:18.2]} 49... Nxf2 {[%clk 0:00:57.5]} 50. Rb1+ {[%clk 0:00:16.5]}
50... Kc4 {[%clk 0:00:57.1]} 51. Bxf2 {[%clk 0:00:16.6]} 51... Ra2 {[%clk
0:00:56.5]} 52. Ng4 {[%clk 0:00:14.7]} 52... Raxf2+ {[%clk 0:00:36.1]} 53. Nxf2
{[%clk 0:00:14.2]} 53... e3 {[%clk 0:00:36.5]} 54. Rb2 {[%clk 0:00:14.7]} 54...
Rf5 {[%clk 0:00:26.9]} 55. g6 {[%clk 0:00:10.7]} 55... Rxh5 {[%clk 0:00:26.8]}
56. Ne4 {[%clk 0:00:09.1]} 56... Rh1+ {[%clk 0:00:20.9]} 57. Kg2 {[%clk
0:00:09.4]} 57... Rh6 {[%clk 0:00:20.6]} 58. Rb6 {[%clk 0:00:08.2]} 58... Kd3
{[%clk 0:00:19]} 59. Ng3 {[%clk 0:00:06.7]} 59... e2 {[%clk 0:00:18.4]} 60. Rd6+
{[%clk 0:00:05.4]} 60... Ke3 {[%clk 0:00:16.7]} 61. Nf5+ {[%clk 0:00:05.6]}
61... Kf4 {[%clk 0:00:16.1]} 62. Nxh6 {[%clk 0:00:02.2]} 62... e1=Q {[%clk
0:00:16.1]} 63. g7 {[%clk 0:00:01.2]} 63... Qg3+ {[%clk 0:00:15.2]} 64. Kf1
{[%clk 0:00:01.9]} 64... Qxg7 {[%clk 0:00:14.9]} 65. Rd4+ {[%clk 0:00:01]} 65...
Qxd4 {[%clk 0:00:13.9]} 0-1

[Event "*** SCC Grand Prix: Titled Tuesday Blitz"]
[Site "Chess.com"]
[Date "2020.08.11"]
[Round "9"]
[White "ferch1ni"]
[Black "AttilaTurzo"]
[Result "1-0"]
[WhiteElo "2317"]
[BlackElo "2437"]
[TimeControl "180+1"]
[EndTime "11:47:21 PDT"]
[Termination "ferch1ni won on time"]

1. e4 {[%clk 0:02:53]} 1... c5 {[%clk 0:02:59.6]} 2. Nf3 {[%clk 0:02:50.7]} 2...
d6 {[%clk 0:03:00.1]} 3. d4 {[%clk 0:02:50.9]} 3... cxd4 {[%clk 0:03:01]} 4.
Nxd4 {[%clk 0:02:51.5]} 4... Nf6 {[%clk 0:03:01.7]} 5. f3 {[%clk 0:02:51.9]}
5... e5 {[%clk 0:02:58.3]} 6. Nb3 {[%clk 0:02:49.5]} 6... d5 {[%clk 0:02:58.5]}
7. Bg5 {[%clk 0:02:50.1]} 7... dxe4 {[%clk 0:02:58]} 8. Qxd8+ {[%clk 0:02:47.8]}
8... Kxd8 {[%clk 0:02:58.9]} 9. fxe4 {[%clk 0:02:47.7]} 9... Be7 {[%clk
0:02:56.2]} 10. Nc3 {[%clk 0:02:47]} 10... a6 {[%clk 0:02:51.7]} 11. Bxf6 {[%clk
0:02:37.2]} 11... Bxf6 {[%clk 0:02:44.1]} 12. Nd5 {[%clk 0:02:35.3]} 12... Be6
{[%clk 0:02:40]} 13. O-O-O {[%clk 0:02:24.2]} 13... Bxd5 {[%clk 0:02:39.3]} 14.
Rxd5+ {[%clk 0:02:18.4]} 14... Kc7 {[%clk 0:02:39.4]} 15. Be2 {[%clk 0:02:08.7]}
15... Nc6 {[%clk 0:02:36.1]} 16. Rhd1 {[%clk 0:02:05.1]} 16... Rad8 {[%clk
0:02:36]} 17. c3 {[%clk 0:01:47]} 17... Be7 {[%clk 0:02:20.1]} 18. Nc5 {[%clk
0:01:33.8]} 18... Bxc5 {[%clk 0:02:17.8]} 19. Rxc5 {[%clk 0:01:32]} 19... Rxd1+
{[%clk 0:02:17.5]} 20. Bxd1 {[%clk 0:01:28.3]} 20... g6 {[%clk 0:02:10.3]} 21.
Ba4 {[%clk 0:01:22.5]} 21... Re8 {[%clk 0:01:43.6]} 22. Bxc6 {[%clk 0:01:17.3]}
22... bxc6 {[%clk 0:01:44.5]} 23. b4 {[%clk 0:01:13.8]} 23... Kb6 {[%clk
0:01:36.5]} 24. a4 {[%clk 0:01:13.1]} 24... f5 {[%clk 0:01:33.2]} 25. Kd2 {[%clk
0:01:12.9]} 25... f4 {[%clk 0:01:22]} 26. Ke2 {[%clk 0:01:04.3]} 26... g5 {[%clk
0:01:21.8]} 27. Kf3 {[%clk 0:00:50.7]} 27... h5 {[%clk 0:01:21.2]} 28. h3 {[%clk
0:00:48.3]} 28... Re7 {[%clk 0:01:20]} 29. Ke2 {[%clk 0:00:47.4]} 29... g4
{[%clk 0:01:19.8]} 30. Kf2 {[%clk 0:00:47.1]} 30... Re8 {[%clk 0:01:16]} 31. Ke2
{[%clk 0:00:41.6]} 31... Kb7 {[%clk 0:01:15.5]} 32. b5 {[%clk 0:00:37.5]} 32...
axb5 {[%clk 0:01:14.6]} 33. axb5 {[%clk 0:00:38.4]} 33... cxb5 {[%clk
0:01:13.2]} 34. Rxb5+ {[%clk 0:00:39.3]} 34... Kc6 {[%clk 0:01:13.6]} 35. Ra5
{[%clk 0:00:38.9]} 35... Kd6 {[%clk 0:01:10.9]} 36. Ra6+ {[%clk 0:00:39]} 36...
Kc5 {[%clk 0:00:59.2]} 37. Rh6 {[%clk 0:00:37.7]} 37... gxh3 {[%clk 0:00:54.3]}
38. gxh3 {[%clk 0:00:37.3]} 38... Kc4 {[%clk 0:00:54.8]} 39. Rc6+ {[%clk
0:00:37.1]} 39... Kb5 {[%clk 0:00:48.7]} 40. Rc7 {[%clk 0:00:35.4]} 40... Rg8
{[%clk 0:00:46.4]} 41. Re7 {[%clk 0:00:34.4]} 41... Rg5 {[%clk 0:00:43.1]} 42.
h4 {[%clk 0:00:34.3]} 42... Rg2+ {[%clk 0:00:42.6]} 43. Kf1 {[%clk 0:00:34.9]}
43... Rh2 {[%clk 0:00:36.9]} 44. Rxe5+ {[%clk 0:00:35.1]} 44... Kc4 {[%clk
0:00:37.3]} 45. Rxh5 {[%clk 0:00:34.4]} 45... Kd3 {[%clk 0:00:36.8]} 46. Kg1
{[%clk 0:00:30.5]} 46... Rc2 {[%clk 0:00:30.8]} 47. e5 {[%clk 0:00:18.2]} 47...
Ke3 {[%clk 0:00:30.2]} 48. e6 {[%clk 0:00:17.1]} 48... Rc1+ {[%clk 0:00:22]} 49.
Kh2 {[%clk 0:00:16.9]} 49... Kf2 {[%clk 0:00:17.3]} 50. e7 {[%clk 0:00:13.9]}
50... Re1 {[%clk 0:00:17]} 51. Rh7 {[%clk 0:00:11.5]} 51... f3 {[%clk
0:00:11.5]} 52. Rf7 {[%clk 0:00:11.3]} 52... Re4 {[%clk 0:00:08.3]} 53. Kh3
{[%clk 0:00:11.6]} 53... Re1 {[%clk 0:00:08.4]} 54. c4 {[%clk 0:00:11]} 54...
Rh1+ {[%clk 0:00:07.6]} 55. Kg4 {[%clk 0:00:11.4]} 55... Rg1+ {[%clk 0:00:06.6]}
56. Kh3 {[%clk 0:00:09.9]} 56... Rh1+ {[%clk 0:00:06]} 57. Kg4 {[%clk
0:00:10.1]} 57... Rg1+ {[%clk 0:00:06.2]} 58. Kh5 {[%clk 0:00:10.5]} 58... Re1
{[%clk 0:00:04.7]} 59. c5 {[%clk 0:00:10.8]} 59... Kg2 {[%clk 0:00:04.5]} 60. c6
{[%clk 0:00:10.8]} 60... Re5+ {[%clk 0:00:03.2]} 61. Kg4 {[%clk 0:00:09.7]}
61... f2 {[%clk 0:00:01.9]} 62. c7 {[%clk 0:00:08.6]} 62... Rxe7 {[%clk
0:00:02.1]} 63. Rxf2+ {[%clk 0:00:08.2]} 63... Kxf2 {[%clk 0:00:01.3]} 64. c8=Q
{[%clk 0:00:08.9]} 64... Rg7+ {[%clk 0:00:01.5]} 65. Kf5 {[%clk 0:00:09]} 65...
Rf7+ {[%clk 0:00:01.8]} 66. Kg6 {[%clk 0:00:09.1]} 66... Rf3 {[%clk 0:00:01.5]}
67. h5 {[%clk 0:00:09.2]} 67... Kg3 {[%clk 0:00:01.6]} 68. h6 {[%clk 0:00:09.1]}
68... Rf4 {[%clk 0:00:01.9]} 69. h7 {[%clk 0:00:08.3]} 1-0

[Event "*** SCC Grand Prix: Titled Tuesday Blitz"]
[Site "Chess.com"]
[Date "2020.08.11"]
[Round "9"]
[White "Chessbard1972"]
[Black "rugbyclub"]
[Result "0-1"]
[WhiteElo "2310"]
[BlackElo "2207"]
[TimeControl "180+1"]
[EndTime "11:47:21 PDT"]
[Termination "rugbyclub won on time"]

1. d4 {[%clk 0:03:00.9]} 1... Nf6 {[%clk 0:02:49.3]} 2. Nf3 {[%clk 0:02:59.5]}
2... d5 {[%clk 0:02:48.7]} 3. c4 {[%clk 0:02:59.3]} 3... e6 {[%clk 0:02:48.5]}
4. Nc3 {[%clk 0:02:59.1]} 4... Bb4 {[%clk 0:02:48.1]} 5. e3 {[%clk 0:02:58.5]}
5... c5 {[%clk 0:02:45.3]} 6. cxd5 {[%clk 0:02:56]} 6... exd5 {[%clk 0:02:44.6]}
7. a3 {[%clk 0:02:54.8]} 7... Bxc3+ {[%clk 0:02:43]} 8. bxc3 {[%clk 0:02:54.9]}
8... c4 {[%clk 0:02:43.5]} 9. a4 {[%clk 0:02:53.6]} 9... O-O {[%clk 0:02:40.3]}
10. Ba3 {[%clk 0:02:53.3]} 10... Re8 {[%clk 0:02:40.5]} 11. Nd2 {[%clk
0:02:52.5]} 11... Bf5 {[%clk 0:02:38.2]} 12. Be2 {[%clk 0:02:51.9]} 12... Nc6
{[%clk 0:02:36.7]} 13. O-O {[%clk 0:02:50.7]} 13... Qa5 {[%clk 0:02:36.5]} 14.
Qc1 {[%clk 0:02:45.2]} 14... h6 {[%clk 0:02:31.4]} 15. Qb2 {[%clk 0:02:41.3]}
15... Qc7 {[%clk 0:02:20.8]} 16. h3 {[%clk 0:02:39.6]} 16... b6 {[%clk
0:02:18.6]} 17. Bf3 {[%clk 0:02:39.1]} 17... Rad8 {[%clk 0:02:16.1]} 18. Rfe1
{[%clk 0:02:38.5]} 18... Bd3 {[%clk 0:02:15.1]} 19. Nf1 {[%clk 0:02:29.3]} 19...
Ne7 {[%clk 0:02:10.8]} 20. Ng3 {[%clk 0:02:27.7]} 20... Nf5 {[%clk 0:02:10.5]}
21. Nxf5 {[%clk 0:02:27.1]} 21... Bxf5 {[%clk 0:02:09.8]} 22. Be2 {[%clk
0:02:26.4]} 22... Qd7 {[%clk 0:01:58.3]} 23. Bf1 {[%clk 0:02:24.3]} 23... Ne4
{[%clk 0:01:56.9]} 24. f3 {[%clk 0:02:23.3]} 24... Ng3 {[%clk 0:01:52.5]} 25.
Qf2 {[%clk 0:02:21.1]} 25... Nxf1 {[%clk 0:01:52.1]} 26. Qxf1 {[%clk 0:02:20.8]}
26... Re6 {[%clk 0:01:48.8]} 27. e4 {[%clk 0:02:12.4]} 27... dxe4 {[%clk
0:01:48.4]} 28. fxe4 {[%clk 0:02:11.9]} 28... Bxe4 {[%clk 0:01:43.5]} 29. Qxc4
{[%clk 0:02:11.6]} 29... Bd5 {[%clk 0:01:43.6]} 30. Qb5 {[%clk 0:02:06.6]} 30...
Bc6 {[%clk 0:01:36.2]} 31. Qa6 {[%clk 0:02:04.3]} 31... Qd5 {[%clk 0:01:25]} 32.
Qf1 {[%clk 0:01:57.5]} 32... Rde8 {[%clk 0:01:24.4]} 33. Rxe6 {[%clk 0:01:52.3]}
33... Rxe6 {[%clk 0:01:24.6]} 34. Rc1 {[%clk 0:01:16.3]} 34... Rg6 {[%clk
0:01:21.3]} 35. Rc2 {[%clk 0:01:14.7]} 35... Bxa4 {[%clk 0:01:15.1]} 36. Rf2
{[%clk 0:01:13.1]} 36... Bc6 {[%clk 0:01:14.9]} 37. Bb2 {[%clk 0:01:08.6]} 37...
b5 {[%clk 0:01:14.2]} 38. Ba3 {[%clk 0:01:07.1]} 38... a5 {[%clk 0:01:00.7]} 39.
Bc5 {[%clk 0:01:04.6]} 39... Qe6 {[%clk 0:00:49.8]} 40. Qe2 {[%clk 0:01:00.7]}
40... Qxh3 {[%clk 0:00:41.6]} 41. Bb6 {[%clk 0:00:52.4]} 41... Qxc3 {[%clk
0:00:35.2]} 42. Qa2 {[%clk 0:00:41.6]} 42... Qc4 {[%clk 0:00:18.8]} 43. Qxc4
{[%clk 0:00:36.7]} 43... bxc4 {[%clk 0:00:19.4]} 44. Bxa5 {[%clk 0:00:37.1]}
44... Bd5 {[%clk 0:00:17.1]} 45. Kf1 {[%clk 0:00:35.9]} 45... h5 {[%clk
0:00:16.1]} 46. Bc3 {[%clk 0:00:33.9]} 46... f6 {[%clk 0:00:15.7]} 47. Re2
{[%clk 0:00:31.5]} 47... Kf7 {[%clk 0:00:15.7]} 48. Be1 {[%clk 0:00:31.2]} 48...
Rg4 {[%clk 0:00:14.9]} 49. Bf2 {[%clk 0:00:29.9]} 49... Kg6 {[%clk 0:00:14.9]}
50. g3 {[%clk 0:00:28.9]} 50... Kf5 {[%clk 0:00:13.2]} 51. Ke1 {[%clk
0:00:28.4]} 51... g5 {[%clk 0:00:13.2]} 52. Re7 {[%clk 0:00:25.1]} 52... Be4
{[%clk 0:00:11]} 53. Kd2 {[%clk 0:00:23.8]} 53... h4 {[%clk 0:00:09.9]} 54. gxh4
{[%clk 0:00:23]} 54... gxh4 {[%clk 0:00:10.1]} 55. Rh7 {[%clk 0:00:23.2]} 55...
Rg2 {[%clk 0:00:09.9]} 56. Ke3 {[%clk 0:00:22.1]} 56... c3 {[%clk 0:00:10.2]}
57. Bxh4 {[%clk 0:00:20.5]} 57... c2 {[%clk 0:00:09.8]} 58. Rh5+ {[%clk
0:00:19.2]} 58... Kg6 {[%clk 0:00:07.5]} 59. Rc5 {[%clk 0:00:18.5]} 59... Rg1
{[%clk 0:00:06.9]} 60. Kxe4 {[%clk 0:00:14.1]} 60... c1=Q {[%clk 0:00:06.9]} 61.
Rxc1 {[%clk 0:00:13.7]} 61... Rxc1 {[%clk 0:00:07.6]} 62. Bg3 {[%clk 0:00:11.4]}
62... Rd1 {[%clk 0:00:06]} 63. Kd5 {[%clk 0:00:09.7]} 63... f5 {[%clk
0:00:06.6]} 64. Ke5 {[%clk 0:00:08.1]} 64... Rd3 {[%clk 0:00:04.9]} 65. Bf4
{[%clk 0:00:07.8]} 65... Rd1 {[%clk 0:00:03.4]} 66. d5 {[%clk 0:00:07.7]} 66...
Re1+ {[%clk 0:00:02.7]} 67. Kd6 {[%clk 0:00:07.3]} 67... Kf6 {[%clk 0:00:02.5]}
68. Kc6 {[%clk 0:00:07.3]} 68... Re4 {[%clk 0:00:02.4]} 69. Bc7 {[%clk
0:00:06.5]} 69... Rc4+ {[%clk 0:00:02.5]} 70. Kd7 {[%clk 0:00:03.3]} 70... Rd4
{[%clk 0:00:02]} 71. d6 {[%clk 0:00:03.2]} 71... f4 {[%clk 0:00:02.1]} 72. Bd8+
{[%clk 0:00:02.8]} 72... Kf7 {[%clk 0:00:01.4]} 0-1

[Event "*** SCC Grand Prix: Titled Tuesday Blitz"]
[Site "Chess.com"]
[Date "2020.08.11"]
[Round "9"]
[White "Anton_Demchenko"]
[Black "Fandorine"]
[Result "0-1"]
[WhiteElo "2845"]
[BlackElo "2916"]
[TimeControl "180+1"]
[EndTime "11:47:32 PDT"]
[Termination "Fandorine won by resignation"]

1. d4 {[%clk 0:03:00.9]} 1... Nf6 {[%clk 0:03:00.2]} 2. Nf3 {[%clk 0:03:01.8]}
2... g6 {[%clk 0:03:00.5]} 3. Bf4 {[%clk 0:03:01.8]} 3... Bg7 {[%clk 0:03:01.1]}
4. c3 {[%clk 0:03:02.6]} 4... O-O {[%clk 0:03:01.5]} 5. Nbd2 {[%clk 0:03:03.3]}
5... d6 {[%clk 0:03:02.1]} 6. e4 {[%clk 0:03:04]} 6... Nfd7 {[%clk 0:03:00.2]}
7. Be2 {[%clk 0:03:00.3]} 7... Nc6 {[%clk 0:02:59.9]} 8. d5 {[%clk 0:03:00.3]}
8... Nce5 {[%clk 0:02:59.4]} 9. Nxe5 {[%clk 0:03:00]} 9... Nxe5 {[%clk
0:02:59.5]} 10. Be3 {[%clk 0:03:00.4]} 10... c6 {[%clk 0:02:57.3]} 11. O-O
{[%clk 0:02:59.2]} 11... Nd7 {[%clk 0:02:55.3]} 12. Re1 {[%clk 0:02:50.8]} 12...
Nf6 {[%clk 0:02:53.9]} 13. Bf3 {[%clk 0:02:46.4]} 13... Nd7 {[%clk 0:02:50.7]}
14. a4 {[%clk 0:02:44]} 14... c5 {[%clk 0:02:46.5]} 15. Be2 {[%clk 0:02:41.6]}
15... Rb8 {[%clk 0:02:45.3]} 16. Nc4 {[%clk 0:02:39.5]} 16... b6 {[%clk
0:02:45.4]} 17. Qd2 {[%clk 0:02:38.5]} 17... a6 {[%clk 0:02:43.5]} 18. Bh6
{[%clk 0:02:37.2]} 18... Qc7 {[%clk 0:02:33.1]} 19. Bxg7 {[%clk 0:02:32.1]}
19... Kxg7 {[%clk 0:02:34]} 20. f4 {[%clk 0:02:11.3]} 20... Bb7 {[%clk
0:02:28.6]} 21. Bf3 {[%clk 0:02:10.3]} 21... b5 {[%clk 0:02:28.8]} 22. axb5
{[%clk 0:02:10.1]} 22... axb5 {[%clk 0:02:29.7]} 23. Ne3 {[%clk 0:02:04]} 23...
Ra8 {[%clk 0:02:29.8]} 24. h4 {[%clk 0:02:02.2]} 24... c4 {[%clk 0:02:15.5]} 25.
h5 {[%clk 0:01:41.3]} 25... Qc5 {[%clk 0:02:11.6]} 26. Kh2 {[%clk 0:01:38.8]}
26... e5 {[%clk 0:01:01]} 27. Rxa8 {[%clk 0:01:17.5]} 27... Bxa8 {[%clk
0:01:00.8]} 28. f5 {[%clk 0:01:18.2]} 28... Nf6 {[%clk 0:00:49.9]} 29. Kg3
{[%clk 0:01:02.7]} 29... gxh5 {[%clk 0:00:22.8]} 30. Kh3 {[%clk 0:00:52]} 30...
Rg8 {[%clk 0:00:19.8]} 31. Qf2 {[%clk 0:00:50]} 31... Bb7 {[%clk 0:00:13.1]} 32.
Qh4 {[%clk 0:00:45.7]} 32... h6 {[%clk 0:00:13.3]} 33. Bxh5 {[%clk 0:00:39.8]}
33... Qc7 {[%clk 0:00:12.3]} 34. Bf3 {[%clk 0:00:38.7]} 34... Qe7 {[%clk
0:00:12.4]} 35. Ra1 {[%clk 0:00:36.1]} 35... Bc8 {[%clk 0:00:10.5]} 36. Ra5
{[%clk 0:00:28.8]} 36... Qd8 {[%clk 0:00:04]} 37. Rxb5 {[%clk 0:00:25.3]} 37...
h5 {[%clk 0:00:04.4]} 38. Rb8 {[%clk 0:00:19.4]} 38... Qe7 {[%clk 0:00:04.6]}
39. Rb6 {[%clk 0:00:16.2]} 39... Qd8 {[%clk 0:00:03.5]} 40. Rc6 {[%clk 0:00:15]}
40... Qe7 {[%clk 0:00:04]} 41. g3 {[%clk 0:00:14.7]} 41... Bd7 {[%clk
0:00:03.9]} 42. Rc7 {[%clk 0:00:14.5]} 42... Kf8 {[%clk 0:00:03.2]} 43. Rxc4
{[%clk 0:00:11.1]} 43... Ke8 {[%clk 0:00:03.2]} 44. Ra4 {[%clk 0:00:11.3]} 44...
Bxa4 {[%clk 0:00:03]} 45. b4 {[%clk 0:00:09.7]} 45... Bd7 {[%clk 0:00:03.1]} 46.
c4 {[%clk 0:00:10.6]} 46... Kd8 {[%clk 0:00:03.4]} 47. c5 {[%clk 0:00:09.7]}
47... dxc5 {[%clk 0:00:03.6]} 48. bxc5 {[%clk 0:00:10.6]} 48... Ng4 {[%clk
0:00:04.2]} 49. Bxg4 {[%clk 0:00:04.8]} 49... hxg4+ {[%clk 0:00:04.3]} 50. Kg2
{[%clk 0:00:04.4]} 50... Qxh4 {[%clk 0:00:03.4]} 51. gxh4 {[%clk 0:00:05.3]}
51... Bb5 {[%clk 0:00:03.4]} 52. Kg3 {[%clk 0:00:03.3]} 52... Bd3 {[%clk
0:00:03.8]} 53. f6 {[%clk 0:00:03.7]} 53... Bxe4 {[%clk 0:00:04.1]} 54. h5
{[%clk 0:00:03.7]} 54... Kd7 {[%clk 0:00:04.2]} 55. h6 {[%clk 0:00:02.4]} 55...
Bg6 {[%clk 0:00:04.3]} 56. Kxg4 {[%clk 0:00:02.2]} 56... Bh7+ {[%clk 0:00:04.6]}
57. Kh5 {[%clk 0:00:02.5]} 57... e4 {[%clk 0:00:03.7]} 58. Ng4 {[%clk
0:00:02.8]} 58... Kd8 {[%clk 0:00:03.7]} 59. Ne5 {[%clk 0:00:02.8]} 59... Ke8
{[%clk 0:00:03.5]} 60. d6 {[%clk 0:00:02.9]} 60... e3 {[%clk 0:00:03.3]} 61. c6
{[%clk 0:00:03.5]} 61... e2 {[%clk 0:00:03.3]} 62. c7 {[%clk 0:00:04.1]} 62...
Bf5 {[%clk 0:00:03.5]} 63. h7 {[%clk 0:00:04.7]} 63... Rh8 {[%clk 0:00:04]} 64.
Kg5 {[%clk 0:00:05.4]} 64... e1=Q {[%clk 0:00:04.2]} 65. Kxf5 {[%clk 0:00:06.2]}
65... Qf2+ {[%clk 0:00:04.2]} 66. Ke4 {[%clk 0:00:06.6]} 66... Qe2+ {[%clk
0:00:04.4]} 67. Kd5 {[%clk 0:00:07.5]} 67... Qb5+ {[%clk 0:00:04.9]} 68. Kd4
{[%clk 0:00:07.6]} 68... Qd7 {[%clk 0:00:04.4]} 69. Kd5 {[%clk 0:00:03.8]} 69...
Rxh7 {[%clk 0:00:04.2]} 70. Nxd7 {[%clk 0:00:02.9]} 70... Kxd7 {[%clk
0:00:05.1]} 71. Ke5 {[%clk 0:00:03.5]} 71... Rh5+ {[%clk 0:00:05]} 72. Kd4
{[%clk 0:00:04.4]} 72... Rf5 {[%clk 0:00:05.2]} 73. Ke4 {[%clk 0:00:05.3]} 73...
Rxf6 {[%clk 0:00:05.3]} 74. Ke5 {[%clk 0:00:05.3]} 74... Re6+ {[%clk 0:00:05.8]}
75. Kd5 {[%clk 0:00:05.5]} 75... Rxd6+ {[%clk 0:00:06.1]} 76. Ke5 {[%clk
0:00:06.4]} 76... Rc6 {[%clk 0:00:06.4]} 77. Kd5 {[%clk 0:00:06.6]} 77... Rxc7
{[%clk 0:00:06.7]} 78. Ke5 {[%clk 0:00:07.5]} 78... Ke7 {[%clk 0:00:07.2]} 79.
Kf5 {[%clk 0:00:08.4]} 79... Rd7 {[%clk 0:00:08.1]} 80. Ke5 {[%clk 0:00:09.3]}
80... Rd6 {[%clk 0:00:09]} 0-1